bitfinex-derivatives/quotes_BNBF0:USTF0_20250510
["timestamp","ask_amount","ask_price","bid_price","bid_amount"]
[1746909221397,0.26600014,654.86,654.03,1.41]
[1746909221701,0.28096387,654.85,654.03,1.41]
[1746909223806,0.26600014,654.86,654.03,1.41]
[1746909224007,1.96604543,655.55,654.03,1.41]
[1746909224307,0.54689562,654.85,654.03,1.41]
[1746909224506,0.28096358,654.85,654.03,1.41]
[1746909224802,0.28096358,654.84,654.03,1.41]
[1746909225199,1.96604543,655.4,654.03,1.41]
[1746909225404,0.2659544,654.83,654.03,1.41]
[1746909225607,0.28097983,654.82,654.03,1.41]
[1746909226206,0.28097983,655.38,654.03,1.41]
[1746909226902,0.28097983,655.37,654.03,1.41]
[1746909227209,0.54693423,655.37,654.03,1.41]
[1746909227401,0.28097983,655.36,654.03,1.41]
[1746909227706,0.28097983,655.35,654.03,1.41]
[1746909228107,0.28097983,655.34,654.03,1.41]
[1746909228602,0.28097983,655.33,654.03,1.41]
[1746909229106,0.28097983,655.32,654.03,1.41]
[1746909229303,0.28097983,655.31,654.03,1.41]
[1746909229808,0.28097983,655.3,654.03,1.41]
[1746909230407,0.28097983,655.29,654.03,1.41]
[1746909231107,0.28097983,655.28,654.03,1.41]
[1746909231407,0.28097983,655.27,654.03,1.41]
[1746909231805,0.28097983,655.26,654.03,1.41]
[1746909232409,0.28097983,655.25,654.03,1.41]
[1746909233206,0.54693626,655.24,654.03,1.41]
[1746909233510,0.28097983,655.23,654.03,1.41]
[1746909233910,0.28097983,655.22,654.03,1.41]
[1746909234418,0.28097983,655.21,654.03,1.41]
[1746909234606,0.28097983,655.2,654.03,1.41]
[1746909234911,0.28097983,655.19,654.03,1.41]
[1746909235306,0.28097983,655.18,654.03,1.41]
[1746909236012,0.28097983,655.17,654.03,1.41]
[1746909236211,0.54694947,655.17,654.03,1.41]
[1746909236404,0.28097983,655.16,654.03,1.41]
[1746909236811,0.28097983,655.15,654.03,1.41]
[1746909237005,0.28097983,655.14,654.03,1.41]
[1746909237512,0.28097983,655.13,654.03,1.41]
[1746909237712,0.26596964,655.17,654.03,1.41]
[1746909237713,0.28097983,655.12,654.03,1.41]
[1746909238312,0.28097983,655.11,654.03,1.41]
[1746909238509,0.28097983,655.1,654.03,1.41]
[1746909238913,0.28097983,655.09,654.03,1.41]
[1746909239314,0.54695659,655.08,654.03,1.41]
[1746909239714,0.28097983,655.07,654.03,1.41]
[1746909240017,0.28097983,655.06,654.03,1.41]
[1746909240415,0.28097983,655.05,654.03,1.41]
[1746909240812,0.28097983,655.07,654.03,1.41]
[1746909241116,0.26597676,655.08,654.03,1.41]
[1746909241515,0.2809688,655.07,654.03,1.41]
[1746909241817,0.2809688,655.06,654.03,1.41]
[1746909242216,0.2809688,655.05,654.03,1.41]
[1746909242718,0.2809688,655.04,654.03,1.41]
[1746909243215,0.2809688,655.03,654.03,1.41]
[1746909243619,0.2809688,655.02,654.03,1.41]
[1746909244014,0.2809688,655.07,654.03,1.41]
[1746909244318,0.2809688,655.06,654.03,1.41]
[1746909244714,0.2809688,655.05,654.03,1.41]
[1746909245115,0.2809688,655.04,654.03,1.41]
[1746909245312,0.54695674,655.04,654.03,1.41]
[1746909245516,0.2809688,655.03,654.03,1.41]
[1746909245818,0.26598794,655.04,654.03,1.41]
[1746909246118,0.28096813,655.03,654.03,1.41]
[1746909246818,0.28096813,655.02,654.03,1.41]
[1746909247513,0.28096813,655.01,654.03,1.41]
[1746909247919,0.28096813,655.0,654.03,1.41]
[1746909248214,0.28096813,654.99,654.03,1.41]
[1746909248419,0.54696013,654.99,654.03,1.41]
[1746909248719,0.28096813,654.98,654.03,1.41]
[1746909249018,0.28096813,654.97,654.03,1.41]
[1746909249517,0.28096813,654.96,654.03,1.41]
[1746909249815,0.28096813,654.95,654.03,1.41]
[1746909250219,0.265992,654.99,654.03,1.41]
[1746909250519,0.28099646,654.98,654.03,1.41]
[1746909251017,0.28099646,654.97,654.03,1.41]
[1746909251216,0.54700168,654.97,654.03,1.41]
[1746909251418,0.26600522,654.97,654.03,1.41]
[1746909251718,0.28099646,654.96,654.03,1.41]
[1746909252014,0.28099646,654.95,654.03,1.41]
[1746909252519,0.28099646,654.94,654.03,1.41]
[1746909252919,0.28099646,654.93,654.03,1.41]
[1746909253314,0.28099646,654.96,654.03,1.41]
[1746909253519,0.28099646,654.95,654.03,1.41]
[1746909254120,0.28099646,654.96,654.03,1.41]
[1746909254314,0.28099646,655.12,654.03,1.41]
[1746909254816,0.28099646,655.11,654.03,1.41]
[1746909255222,0.57426493,655.19,654.03,1.41]
[1746909255223,0.54696509,655.1,654.03,1.41]
[1746909255622,0.28099646,655.09,654.03,1.41]
[1746909256019,0.28099646,655.08,654.03,1.41]
[1746909256323,0.28099646,655.07,654.03,1.41]
[1746909256819,0.28099646,655.06,654.03,1.41]
[1746909257023,0.28099646,655.05,654.03,1.41]
[1746909257524,0.28099646,655.04,654.03,1.41]
[1746909257826,0.28099646,655.03,654.03,1.41]
[1746909258322,0.28099646,655.02,654.03,1.41]
[1746909258523,0.28099646,655.05,654.03,1.41]
[1746909258827,0.28099646,655.04,654.03,1.41]
[1746909259226,0.28099646,655.03,654.03,1.41]
[1746909259722,0.28099646,655.02,654.03,1.41]
[1746909260027,0.28099646,655.01,654.03,1.41]
[1746909260528,0.28099646,655.0,654.03,1.41]
[1746909261028,0.28099646,654.99,654.03,1.41]
[1746909261226,0.28099646,654.98,654.03,1.41]
[1746909261622,0.28099646,654.97,654.03,1.41]
[1746909261928,0.28099646,654.96,654.03,1.41]
[1746909262322,0.28099646,654.95,654.03,1.41]
[1746909262728,0.28099646,654.94,654.03,1.41]
[1746909263328,0.54700066,654.93,654.03,1.41]
[1746909263927,0.28099646,654.92,654.03,1.41]
[1746909264428,0.28099646,654.91,654.03,1.41]
[1746909264729,0.28099646,654.9,654.03,1.41]
[1746909265428,0.28099646,654.92,654.03,1.41]
[1746909265731,0.28099646,654.91,654.03,1.41]
[1746909266227,0.28099646,654.92,654.03,1.41]
[1746909266424,0.28099646,654.9,654.03,1.41]
[1746909266930,0.28099646,655.12,654.03,1.41]
[1746909267230,0.26600319,654.89,654.03,1.41]
[1746909267624,0.28099646,655.11,654.03,1.41]
[1746909267925,0.28099646,654.88,654.03,1.41]
[1746909268125,0.28099646,655.1,654.03,1.41]
[1746909268531,0.28099646,655.09,654.03,1.41]
[1746909268827,0.54699151,655.09,654.03,1.41]
[1746909269030,0.28099646,655.08,654.03,1.41]
[1746909269232,0.28099646,655.07,654.03,1.41]
[1746909269531,0.28099646,655.06,654.03,1.41]
[1746909270030,0.28099646,655.05,654.03,1.41]
[1746909270332,0.28099646,655.04,654.03,1.41]
[1746909270730,0.28099646,655.03,654.03,1.41]
[1746909271132,0.28099646,655.02,654.03,1.41]
[1746909271426,0.28099646,655.01,654.03,1.41]
[1746909271733,0.28099646,655.0,654.03,1.41]
[1746909272331,0.54700371,654.99,654.03,1.41]
[1746909272834,0.28099646,654.98,654.03,1.41]
[1746909273933,0.28099646,654.97,654.03,1.41]
[1746909274934,0.28099646,654.96,654.03,1.41]
[1746909276035,0.28099646,654.96,654.03,0.735]
[1746909276235,0.28099646,654.95,654.03,0.735]
[1746909276432,0.28099646,654.94,654.03,0.735]
[1746909276934,0.28099646,654.93,654.03,0.735]
[1746909277431,0.28099646,654.92,654.03,0.735]
[1746909277737,0.28099646,654.91,654.03,0.735]
[1746909278036,0.28099646,654.9,654.03,0.735]
[1746909278432,0.28099646,654.89,654.03,0.735]
[1746909278736,0.28099646,654.88,654.03,0.735]
[1746909279037,0.28099646,654.87,654.03,0.735]
[1746909279237,0.28099646,654.86,654.03,0.735]
[1746909279640,0.28099646,654.85,654.03,0.735]
[1746909280040,0.28099646,654.84,654.03,0.735]
[1746909280439,0.28099646,654.83,654.03,0.735]
[1746909280840,0.28099646,654.82,654.03,0.735]
[1746909281139,0.5470688,654.82,654.03,0.735]
[1746909281339,0.28099646,654.81,654.03,0.735]
[1746909281740,0.28099646,654.8,654.03,0.735]
[1746909282040,0.28099646,654.81,654.03,0.735]
[1746909282341,0.28099646,654.8,654.03,0.735]
[1746909282737,0.28099646,654.81,654.03,0.735]
[1746909283141,0.28099646,654.8,654.03,0.735]
[1746909283537,0.28099646,654.81,654.03,0.735]
[1746909284242,0.28099646,654.8,654.03,0.735]
[1746909284737,0.28099646,654.79,654.03,0.735]
[1746909285236,0.54703727,654.78,654.03,0.735]
[1746909285438,0.28099646,654.77,654.03,0.735]
[1746909285742,0.28099646,654.76,654.03,0.735]
[1746909286138,0.28099646,654.75,654.03,0.735]
[1746909286444,0.28099646,654.74,654.03,0.735]
[1746909286945,0.28099646,654.73,654.03,0.735]
[1746909287142,0.28099646,654.72,654.03,0.735]
[1746909287544,0.28099646,654.71,654.03,0.735]
[1746909287744,0.28099646,654.7,654.03,0.735]
[1746909288145,0.28099646,654.69,654.03,0.735]
[1746909288342,0.54705354,654.69,654.03,0.735]
[1746909288738,0.28099646,654.68,654.03,0.735]
[1746909289044,0.28099646,654.67,654.03,0.735]
[1746909289443,0.26605708,654.69,654.03,0.735]
[1746909289444,0.28099646,654.66,654.03,0.735]
[1746909290043,0.28099646,654.65,654.03,0.735]
[1746909290242,0.54709931,654.65,654.03,0.735]
[1746909290439,0.28099646,654.64,654.03,0.735]
[1746909290744,0.28099646,654.63,654.03,0.735]
[1746909291141,0.28099646,654.62,654.03,0.735]
[1746909291444,0.28099646,654.61,654.03,0.735]
[1746909291844,0.28099646,654.6,654.03,0.735]
[1746909292239,0.28099646,654.59,654.03,0.735]
[1746909292541,0.28099646,654.58,654.03,0.735]
[1746909292944,0.28099646,654.57,654.03,0.735]
[1746909293343,0.26610285,654.65,654.03,0.735]
[1746909293844,0.28110879,654.64,654.03,0.735]
[1746909294243,0.28110879,654.63,654.03,0.735]
[1746909294645,0.28110879,654.62,654.03,0.735]
[1746909294944,0.28110879,654.61,654.03,0.735]
[1746909295241,0.28110879,654.64,654.03,0.735]
[1746909296341,0.26609268,654.63,654.03,0.735]
[1746909296846,0.28110879,654.62,654.03,0.735]
[1746909299147,0.26609472,654.61,654.03,0.735]
[1746909299346,0.28110879,654.6,654.03,0.735]
[1746909301651,0.28110879,654.59,654.03,0.735]
[1746909302249,0.28110879,654.58,654.03,0.735]
[1746909302650,0.28110879,654.57,654.03,0.735]
[1746909302949,0.26609472,654.61,654.03,0.735]
[1746909303346,0.28113411,654.6,654.03,0.735]
[1746909303551,0.28113411,654.59,654.03,0.735]
[1746909303950,0.28113411,654.58,654.03,0.735]
[1746909304250,0.28113411,654.6,654.03,0.735]
[1746909304648,0.28113411,654.59,654.03,0.735]
[1746909304950,0.28113411,654.58,654.03,0.735]
[1746909305153,0.28113411,654.58,654.04,0.30579169]
[1746909305347,0.28113411,654.57,654.04,0.30579169]
[1746909305851,0.28113411,654.56,654.04,0.30579169]
[1746909306151,0.28113411,654.55,654.04,0.30579169]
[1746909306451,0.28113411,654.54,654.04,0.30579169]
[1746909306846,0.28113411,654.53,654.04,0.30579169]
[1746909307352,0.28113411,654.52,654.04,0.30579169]
[1746909307654,0.28113411,654.51,654.04,0.30579169]
[1746909308147,0.28113411,654.5,654.04,0.30579169]
[1746909308453,0.28113411,654.49,654.04,0.30579169]
[1746909308649,0.28113411,654.48,654.04,0.30579169]
[1746909309052,0.28113411,654.47,654.04,0.30579169]
[1746909309450,0.28113411,654.49,654.04,0.30579169]
[1746909311154,0.2661344,654.48,654.04,0.30579169]
[1746909311454,0.28113411,654.47,654.04,0.30579169]
[1746909315060,0.2661344,654.48,654.04,0.30579169]
[1746909315362,0.2811428,654.47,654.04,0.30579169]
[1746909317263,0.26613643,654.46,654.04,0.30579169]
[1746909317664,0.2811428,654.45,654.04,0.30579169]
[1746909320460,0.2811428,654.99,654.04,0.30579169]
[1746909321165,0.2811428,654.98,654.04,0.30579169]
[1746909321366,1.96604543,654.79,654.04,0.30579169]
[1746909322066,0.85570088,654.78,654.04,0.30579169]
[1746909322460,0.2811428,654.77,654.04,0.30579169]
[1746909322761,0.2811428,654.76,654.04,0.30579169]
[1746909323067,0.2811428,654.75,654.04,0.30579169]
[1746909323566,0.2811428,654.74,654.04,0.30579169]
[1746909323866,0.2811428,654.73,654.04,0.30579169]
[1746909324262,0.2811428,654.72,654.04,0.30579169]
[1746909324464,0.2811428,654.71,654.04,0.30579169]
[1746909324866,0.2811428,654.7,654.04,0.30579169]
[1746909325362,0.26610591,654.75,654.04,0.30579169]
[1746909325363,0.2811428,654.69,654.04,0.30579169]
[1746909325665,0.2811428,654.68,654.04,0.30579169]
[1746909325964,0.2811428,654.67,654.04,0.30579169]
[1746909326264,0.26610591,654.75,654.04,0.30579169]
[1746909326265,0.2811428,654.66,654.04,0.30579169]
[1746909326664,0.2811428,654.65,654.04,0.30579169]
[1746909327066,0.2811428,654.64,654.04,0.30579169]
[1746909327561,0.2811428,654.63,654.04,0.30579169]
[1746909327869,0.2811428,654.62,654.04,0.30579169]
[1746909328261,0.2811428,654.61,654.04,0.30579169]
[1746909328460,0.2811428,654.6,654.04,0.30579169]
[1746909328865,0.2811428,654.59,654.04,0.30579169]
[1746909329366,0.2811428,654.58,654.04,0.30579169]
[1746909329664,0.2811428,654.57,654.04,0.30579169]
[1746909329968,0.2811428,654.56,654.04,0.30579169]
[1746909330370,0.2811428,654.55,654.04,0.30579169]
[1746909330768,0.2811428,654.54,654.04,0.30579169]
[1746909331164,0.2811428,654.53,654.04,0.30579169]
[1746909331768,0.2811428,654.52,654.04,0.30579169]
[1746909332069,0.2811428,654.51,654.04,0.30579169]
[1746909332468,0.2811428,654.5,654.04,0.30579169]
[1746909332869,0.2811428,654.49,654.04,0.30579169]
[1746909333366,0.26613338,654.48,654.04,0.30579169]
[1746909333678,0.54727618,654.48,654.04,0.30579169]
[1746909333869,0.2811428,654.47,654.04,0.30579169]
[1746909334269,0.2811428,654.46,654.04,0.30579169]
[1746909334666,0.26613338,654.48,654.04,0.30579169]
[1746909335266,0.28119532,654.47,654.04,0.30579169]
[1746909335667,0.28119532,654.46,654.04,0.30579169]
[1746909336171,0.28119532,654.47,654.04,0.30579169]
[1746909336370,0.28119532,654.45,654.04,0.30579169]
[1746909336671,0.28119532,654.47,654.04,0.30579169]
[1746909337072,0.28119532,654.46,654.04,0.30579169]
[1746909337367,0.28119532,654.45,654.04,0.30579169]
[1746909337872,0.26613338,654.48,654.04,0.30579169]
[1746909337873,0.28119532,654.44,654.04,0.30579169]
[1746909338380,0.28119532,654.43,654.04,0.30579169]
[1746909338674,0.28119532,654.71,654.04,0.30579169]
[1746909339174,0.54730428,654.7,654.04,0.30579169]
[1746909339473,0.28119532,654.69,654.04,0.30579169]
[1746909339875,0.28119532,654.68,654.04,0.30579169]
[1746909340274,0.28119532,654.67,654.04,0.30579169]
[1746909340877,0.28119532,654.66,654.04,0.30579169]
[1746909341074,0.28119532,654.65,654.04,0.30579169]
[1746909341375,0.28119532,654.64,654.04,0.30579169]
[1746909341670,0.28119532,654.63,654.04,0.30579169]
[1746909342074,0.28119532,654.62,654.04,0.30579169]
[1746909342275,0.54732666,654.62,654.04,0.30579169]
[1746909342475,0.28119532,654.61,654.04,0.30579169]
[1746909342871,0.28119532,654.6,654.04,0.30579169]
[1746909343371,0.28119532,654.59,654.04,0.30579169]
[1746909343775,0.28119532,654.58,654.04,0.30579169]
[1746909343971,0.26613134,654.62,654.04,0.30579169]
[1746909344174,1.96604543,654.68,654.04,0.30579169]
[1746909344375,0.28119676,654.61,654.04,0.30579169]
[1746909344677,0.28119676,654.6,654.04,0.30579169]
[1746909345078,0.28119676,654.59,654.04,0.30579169]
[1746909345273,0.54734032,654.59,654.04,0.30579169]
[1746909345475,0.28119676,654.58,654.04,0.30579169]
[1746909345877,0.28119676,654.57,654.04,0.30579169]
[1746909346279,0.28119676,654.56,654.04,0.30579169]
[1746909346778,0.28119676,654.55,654.04,0.30579169]
[1746909346977,0.28119676,654.54,654.04,0.30579169]
[1746909347374,0.28119676,654.53,654.04,0.30579169]
[1746909347780,0.28119676,654.66,654.04,0.30579169]
[1746909348180,0.28119676,654.65,654.04,0.30579169]
[1746909348379,0.54734032,654.65,654.04,0.30579169]
[1746909348579,0.28119676,654.64,654.04,0.30579169]
[1746909349079,0.26614356,654.65,654.04,0.30579169]
[1746909349080,0.28119676,654.63,654.04,0.30579169]
[1746909349381,0.28119676,654.62,654.04,0.30579169]
[1746909349879,0.28119676,654.61,654.04,0.30579169]
[1746909350481,0.28119676,654.6,654.04,0.30579169]
[1746909350781,0.28119676,654.59,654.04,0.30579169]
[1746909351283,0.54732098,654.58,654.04,0.30579169]
[1746909351482,0.28119676,654.57,654.04,0.30579169]
[1746909351780,0.28119676,654.56,654.04,0.30579169]
[1746909352179,0.28119676,654.55,654.04,0.30579169]
[1746909352483,0.28119676,654.57,654.04,0.30579169]
[1746909353182,0.28119676,654.85,654.04,0.30579169]
[1746909354279,0.26604284,654.84,654.04,0.30579169]
[1746909354681,0.28119676,654.83,654.04,0.30579169]
[1746909356484,0.28119676,655.52,654.04,0.30579169]
[1746909356888,0.26602962,655.51,654.04,0.30579169]
[1746909357087,0.54722638,655.51,654.04,0.30579169]
[1746909357388,0.28119676,655.5,654.04,0.30579169]
[1746909357688,0.28119676,655.49,654.04,0.30579169]
[1746909358388,0.28119676,655.48,654.04,0.30579169]
[1746909358690,0.28119676,655.47,654.04,0.30579169]
[1746909358988,0.28119676,655.46,654.04,0.30579169]
[1746909359483,0.28119676,655.45,654.04,0.30579169]
[1746909359888,0.28119676,655.44,654.04,0.30579169]
[1746909360184,1.96604543,655.32,654.04,0.30579169]
[1746909360685,0.85575378,655.31,654.04,0.30579169]
[1746909361184,0.28119676,655.3,654.04,0.30579169]
[1746909361589,0.28119676,655.29,654.04,0.30579169]
[1746909361990,0.28119676,655.28,654.04,0.30579169]
[1746909362290,1.96604543,655.15,654.04,0.30579169]
[1746909362686,0.85575378,655.14,654.04,0.30579169]
[1746909363287,0.28119676,655.13,654.04,0.30579169]
[1746909363791,0.28119676,655.12,654.04,0.30579169]
[1746909364195,0.28119676,655.11,654.04,0.30579169]
[1746909364589,0.28119676,655.1,654.04,0.30579169]
[1746909364788,1.96604543,654.98,654.04,0.30579169]
[1746909365492,0.85575378,654.97,654.04,0.30579169]
[1746909365787,0.28119676,654.96,654.04,0.30579169]
[1746909366094,0.28119676,654.95,654.04,0.30579169]
[1746909366289,0.5472691,654.95,654.04,0.30579169]
[1746909366694,0.28119676,654.94,654.04,0.30579169]
[1746909366993,0.28119676,654.93,654.04,0.30579169]
[1746909367592,0.28119676,654.92,654.04,0.30579169]
[1746909367893,0.28119676,654.91,654.04,0.30579169]
[1746909368293,0.28119676,654.9,654.04,0.30579169]
[1746909368490,0.54727113,654.9,654.04,0.30579169]
[1746909368692,0.28119676,654.89,654.04,0.30579169]
[1746909368988,0.28119676,654.88,654.04,0.30579169]
[1746909369294,0.28119676,654.87,654.04,0.30579169]
[1746909369889,0.28119676,654.86,654.04,0.30579169]
[1746909370496,0.28119676,654.85,654.04,0.30579169]
[1746909370790,0.28119676,654.84,654.04,0.30579169]
[1746909371290,1.96604543,655.11,654.04,0.30579169]
[1746909371291,0.26608251,654.83,654.04,0.30579169]
[1746909371595,0.2811067,654.82,654.04,0.30579169]
[1746909371796,0.2811067,654.81,654.04,0.30579169]
[1746909372096,0.2811067,654.81,654.04,0.97379169]
[1746909372295,0.2811067,654.8,654.04,0.97379169]
[1746909372691,0.2811067,654.82,654.04,0.97379169]
[1746909374297,0.2811067,655.09,654.04,0.97379169]
[1746909374700,0.2811067,655.08,654.04,1.59979169]
[1746909374993,0.2811067,655.07,654.04,1.59979169]
[1746909375297,0.54707634,655.07,654.04,1.59979169]
[1746909375498,0.2811067,655.06,654.04,1.59979169]
[1746909375898,0.2811067,655.05,654.04,1.59979169]
[1746909376197,0.2811067,655.04,654.04,1.59979169]
[1746909376700,0.2811067,655.03,654.04,1.59979169]
[1746909376895,0.2811067,655.02,654.04,1.59979169]
[1746909377297,0.5471048,655.01,654.04,1.59979169]
[1746909377697,0.2811067,655.0,654.04,1.59979169]
[1746909378995,0.2811067,654.99,654.04,1.59979169]
[1746909379402,0.2811067,654.98,654.04,1.59979169]
[1746909379703,0.2811067,654.97,654.04,1.59979169]
[1746909380204,0.57448578,655.52,654.04,1.59979169]
[1746909380205,0.2811067,654.96,654.04,1.59979169]
[1746909380506,0.2660042,654.96,654.04,1.59979169]
[1746909380803,0.28100172,654.95,654.04,1.59979169]
[1746909381203,0.28100172,654.94,654.04,1.59979169]
[1746909381603,0.28100172,654.93,654.04,1.59979169]
[1746909382003,0.28100172,654.95,654.04,1.59979169]
[1746909382304,0.28100172,654.94,654.04,1.59979169]
[1746909383303,0.28100172,654.95,654.04,1.59979169]
[1746909383705,0.28100172,654.94,654.04,1.59979169]
[1746909384007,0.28100172,654.93,654.04,1.59979169]
[1746909384406,0.28100172,654.92,654.04,1.59979169]
[1746909384706,0.28100172,654.91,654.04,1.59979169]
[1746909385107,0.28100172,654.9,654.04,1.59979169]
[1746909385507,0.28100172,654.89,654.04,1.59979169]
[1746909385903,0.28100172,654.88,654.04,1.59979169]
[1746909386208,1.96604543,655.51,654.04,1.59979169]
[1746909386503,0.85527999,655.5,654.04,1.59979169]
[1746909386803,1.96604543,655.44,654.04,1.59979169]
[1746909387507,0.85527999,655.43,654.04,1.59979169]
[1746909387807,0.28100265,655.42,654.04,1.59979169]
[1746909388105,0.26596151,655.41,654.04,1.59979169]
[1746909388303,0.54696416,655.41,654.04,1.59979169]
[1746909388608,0.28100265,655.4,654.04,1.59979169]
[1746909388905,0.28100265,655.39,654.04,1.59979169]
[1746909389405,0.54696619,655.38,654.04,1.59979169]
[1746909389610,1.96604543,655.28,654.04,1.59979169]
[1746909390207,0.85527999,655.27,654.04,1.59979169]
[1746909390614,0.28100265,655.26,654.04,1.59979169]
[1746909391416,0.28100265,655.25,654.04,1.59979169]
[1746909391720,2.24704808,655.24,654.04,1.59979169]
[1746909392015,0.85527999,655.23,654.04,1.59979169]
[1746909392318,0.28100265,655.22,654.04,1.59979169]
[1746909392718,0.28100265,655.21,654.04,1.59979169]
[1746909393121,0.28100265,655.2,654.04,1.59979169]
[1746909393914,0.28100265,655.19,654.04,1.59979169]
[1746909394121,0.28100265,655.18,654.04,1.59979169]
[1746909394618,0.26594322,655.26,654.04,1.59979169]
[1746909394619,0.28100265,655.17,654.04,1.59979169]
[1746909395021,0.28100265,655.16,654.04,1.59979169]
[1746909395520,0.28100265,655.15,654.04,1.59979169]
[1746909396117,0.28100265,655.14,654.04,1.59979169]
[1746909396821,0.26594424,655.16,654.04,1.59979169]
[1746909397923,0.28092559,655.15,654.04,1.59979169]
[1746909398318,0.28092559,655.14,654.04,1.59979169]
[1746909398517,0.28092559,655.13,654.04,1.59979169]
[1746909399323,0.28092559,655.12,654.04,1.59979169]
[1746909399526,0.54684442,655.12,654.04,1.59979169]
[1746909399823,0.28092559,655.11,654.04,1.59979169]
[1746909400321,0.28092559,655.1,654.04,1.59979169]
[1746909400722,0.28092559,655.09,654.04,1.59979169]
[1746909401119,0.28092559,655.08,654.04,1.59979169]
[1746909401421,0.28092559,655.07,654.04,1.59979169]
[1746909401727,0.28092559,655.06,654.04,1.59979169]
[1746909402127,0.28092559,655.05,654.04,1.59979169]
[1746909402526,0.28092559,655.04,654.04,1.59979169]
[1746909402927,0.28092559,655.03,654.04,1.59979169]
[1746909403526,0.28092559,655.11,654.04,1.59979169]
[1746909404028,0.28092559,655.1,654.04,1.59979169]
[1746909404327,0.28092559,655.09,654.04,1.59979169]
[1746909404622,0.28092559,655.08,654.04,1.59979169]
[1746909405027,0.28092559,655.07,654.04,1.59979169]
[1746909405429,0.28092559,655.06,654.04,1.59979169]
[1746909405922,0.28092559,655.05,654.04,1.59979169]
[1746909406127,0.28092559,655.04,654.04,1.59979169]
[1746909406427,0.26593814,655.1,654.04,1.59979169]
[1746909406728,0.28088966,655.09,654.04,1.59979169]
[1746909407228,0.28088966,655.08,654.04,1.59979169]
[1746909407527,0.28088966,655.07,654.04,1.59979169]
[1746909407827,0.28088966,655.06,654.04,1.59979169]
[1746909408423,0.54678818,655.05,654.04,1.59979169]
[1746909408624,0.28088966,655.04,654.04,1.59979169]
[1746909410430,0.54683491,655.03,654.04,1.59979169]
[1746909410930,0.28088966,655.02,654.04,1.59979169]
[1746909411230,0.28088966,655.01,654.04,1.59979169]
[1746909411631,0.28088966,655.0,654.04,1.59979169]
[1746909412031,0.28088966,654.99,654.04,1.59979169]
[1746909412432,0.28088966,654.98,654.04,1.59979169]
[1746909412827,0.28088966,655.02,654.04,1.59979169]
[1746909413535,0.26595033,655.01,654.04,1.59979169]
[1746909413932,0.28088966,655.0,654.04,1.59979169]
[1746909416331,0.26596151,654.99,654.04,1.59979169]
[1746909416735,0.28088966,654.98,654.04,1.59979169]
[1746909419438,0.26596354,654.97,654.04,1.59979169]
[1746909419937,0.28088966,654.96,654.04,1.59979169]
[1746909422535,0.28088966,655.96,654.04,1.59979169]
[1746909423040,0.28088966,655.95,654.04,1.59979169]
[1746909423434,0.28088966,655.94,654.04,1.59979169]
[1746909423744,0.26587211,655.95,654.04,1.59979169]
[1746909423942,1.96604543,655.79,654.04,1.59979169]
[1746909424541,0.85506299,655.78,654.04,1.59979169]
[1746909424840,0.28093041,655.77,654.04,1.59979169]
[1746909425340,0.54683604,655.76,654.04,1.59979169]
[1746909425741,0.28093041,655.75,654.04,1.59979169]
[1746909426142,0.28093041,655.74,654.04,1.59979169]
[1746909426440,0.28093041,655.73,654.04,1.59979169]
[1746909426940,0.28093041,655.72,654.04,1.59979169]
[1746909427242,0.28093041,655.71,654.04,1.59979169]
[1746909427542,0.28093041,655.7,654.04,1.59979169]
[1746909428044,0.28093041,655.69,654.04,1.59979169]
[1746909428642,0.28093041,655.68,654.04,1.59979169]
[1746909428839,0.85506299,655.68,654.04,1.59979169]
[1746909429242,0.26591985,655.67,654.04,1.59979169]
[1746909429540,1.12098284,655.67,654.04,1.59979169]
[1746909429845,0.85506299,655.66,654.04,1.59979169]
[1746909430145,0.85506299,655.65,654.04,1.59979169]
[1746909430646,0.85506299,655.64,654.04,1.59979169]
[1746909430945,0.85506299,655.63,654.04,1.59979169]
[1746909431246,0.26591985,655.67,654.04,1.59979169]
[1746909431546,0.85525052,655.66,654.04,1.59979169]
[1746909431844,0.85525052,655.65,654.04,1.59979169]
[1746909432147,0.85525052,655.64,654.04,1.59979169]
[1746909432447,0.85525052,655.63,654.04,1.59979169]
[1746909432845,0.85525052,655.62,654.04,1.59979169]
[1746909433141,0.85525052,655.61,654.04,1.59979169]
[1746909433545,0.85525052,655.6,654.04,1.59979169]
[1746909433845,0.85525052,655.59,654.04,1.59979169]
[1746909434346,0.85525052,655.58,654.04,1.59979169]
[1746909434745,0.28099285,655.57,654.04,1.59979169]
[1746909435143,1.96604543,655.22,654.04,1.59979169]
[1746909435743,0.85525052,655.21,654.04,1.59979169]